bitfinex/quotes_SOLUSD_20220208
["timestamp","ask_amount","ask_price","bid_price","bid_amount"]
[1644344542170,79.29535846,111.99,111.91,47.8916859]
[1644344542371,92.69915846,111.99,111.91,61.0462859]
[1644344543071,92.69915846,111.99,111.89,2.10775549]
[1644344543271,91.66775549,111.98,111.83,113.75947104]
[1644344543472,13.4125,111.94,111.83,112.5]
[1644344543673,52.6558,111.94,111.83,112.5]
[1644344544274,43.04043082,111.93,111.81,0.024]
[1644344544474,43.04043082,111.93,111.8,0.024]
[1644344544475,65.78767533,111.93,111.8,0.024]
[1644344544673,71.78767533,111.93,111.8,0.024]
[1644344545075,13.4151,111.91,111.83,13.4141]
[1644344545277,46.85500997,111.91,111.84,35.61522402]
[1644344545476,19.4151,111.91,111.84,35.61522402]
[1644344545674,6.0,111.91,111.84,37.97297951]
[1644344546078,44.2657,111.93,111.84,51.38607951]
[1644344546480,44.2657,111.93,111.84,49.27832402]
[1644344546677,30.855,111.93,111.84,49.27832402]
[1644344548079,6.0,111.93,111.84,49.27832402]
[1644344548278,30.2953,111.94,111.84,49.27832402]
[1644344548881,1.27178344,111.98,111.85,112.5]
[1644344549082,1.27178344,111.98,111.88,13.4036]
[1644344549083,6.0,111.98,111.88,13.4036]
[1644344549280,30.4495,111.99,111.88,13.6536]
[1644344549779,48.51380664,111.98,111.89,46.42734237]
[1644344550180,54.51380664,111.98,111.91,56.55962857]
[1644344550581,54.51380664,111.98,111.91,56.80962857]
[1644344550781,6.0,111.98,111.91,56.80962857]
[1644344550984,245.60746081,112.0,111.91,56.80962857]
[1644344551884,37.24862543,111.99,111.91,56.80962857]
[1644344552084,43.24862543,111.99,111.91,56.80962857]
[1644344555405,56.65222543,111.99,111.91,13.4033]
[1644344555607,56.65222543,111.99,111.86,24.0811]
[1644344555608,2.10775549,111.98,111.86,24.0811]
[1644344555808,9.90875549,111.98,111.86,24.0811]
[1644344556007,15.90875549,111.98,111.86,24.0811]
[1644344556506,36.45619345,111.97,111.87,46.55940018]
[1644344556708,42.45619345,111.97,111.87,46.55940018]
[1644344556907,13.4088,111.95,111.88,13.4081]
[1644344557106,57.32519185,111.95,111.89,48.47845641]
[1644344557707,6.0,111.95,111.89,48.72845641]
[1644344557908,31.01288344,111.99,111.89,48.72845641]
[1644344558108,29.7411,111.99,111.89,48.72845641]
[1644344558708,13.4068,111.96,111.89,62.13555641]
[1644344558911,40.71075884,111.96,111.89,61.88555641]
[1644344559109,46.71075884,111.96,111.89,61.88555641]
[1644344560211,46.71075884,111.96,111.89,48.47845641]
[1644344560412,46.71075884,111.96,111.88,13.408]
[1644344561312,46.71075884,111.96,111.89,42.24865628]
[1644344562110,46.71075884,111.96,111.87,13.4093]
[1644344562515,46.71075884,111.96,111.85,112.5]
[1644344562715,46.71075884,111.96,111.85,112.75]
[1644344563112,46.71075884,111.96,111.86,44.1372816]
[1644344563714,46.71075884,111.96,111.86,57.5476816]
[1644344564818,46.71075884,111.96,111.86,59.90543709]
[1644344565021,46.71075884,111.96,111.86,57.7976816]
[1644344567720,46.71075884,111.96,111.86,59.90543709]
[1644344568019,46.71075884,111.96,111.86,57.7976816]
[1644344569724,46.71075884,111.96,111.86,57.5476816]
[1644344569933,47.98254228,111.96,111.86,57.5476816]
[1644344571725,47.98254228,111.96,111.86,57.7976816]
[1644344575129,20.67858344,111.96,111.86,57.7976816]
[1644344575332,7.27178344,111.96,111.9,0.31593954]
[1644344575530,1.27178344,111.97,111.91,13.4035]
[1644344575732,1.27178344,111.98,111.91,15.76125549]
[1644344576030,6.0,111.97,111.91,15.76125549]
[1644344576230,53.64140234,111.98,111.92,48.19005193]
[1644344576630,53.64140234,111.98,111.92,48.44005193]
[1644344577033,6.0,111.98,111.92,48.44005193]
[1644344577433,31.01288344,111.99,111.92,48.44005193]
[1644344577838,44.41638344,111.99,111.92,61.84285193]
[1644344578035,86.80954797,111.99,111.92,61.84285193]
[1644344578438,86.80954797,111.99,111.89,24.4436]
[1644344578636,1.27178344,111.98,111.89,24.4436]
[1644344578836,1.27178344,111.98,111.89,24.6936]
[1644344579036,7.27178344,111.98,111.89,24.6936]
[1644344579438,31.97942077,111.97,111.9,42.1970746]
[1644344579638,37.97942077,111.97,111.9,42.1970746]
[1644344579838,51.38472077,111.97,111.92,47.27974928]
[1644344580238,51.38472077,111.97,111.88,67.5852]
[1644344580442,52.65650421,111.97,111.85,140.58782653]
[1644344580639,52.65650421,111.97,111.85,143.2206]
[1644344580840,52.65650421,111.97,111.85,137.2206]
[1644344581139,1.27178344,111.96,111.88,13.4081]
[1644344581338,13.4081,111.95,111.89,34.7181941]
[1644344581639,19.4081,111.95,111.89,34.7181941]
[1644344582738,6.0,111.95,111.89,48.3754941]
[1644344583140,7.27178344,111.97,111.89,48.3754941]
[1644344583346,7.27178344,111.97,111.89,50.48324959]
[1644344583641,6.0,111.97,111.89,50.48324959]
[1644344584039,42.80950855,111.98,111.89,50.48324959]
[1644344584242,36.80950855,111.98,111.89,50.48324959]
[1644344584440,42.80950855,111.98,111.89,50.48324959]
[1644344584840,13.4049,111.96,111.89,50.48324959]
[1644344585450,19.4049,111.96,111.89,56.48324959]
[1644344587046,58.23976019,111.96,111.89,15.51505549]
[1644344587247,58.23976019,111.96,111.87,0.32117359]
[1644344587248,54.34751568,111.96,111.86,3.36722653]
[1644344587450,13.4114,111.93,111.82,1.28347104]
[1644344587647,19.4114,111.93,111.82,1.28347104]
[1644344587850,20.68318344,111.93,111.82,0.024]
[1644344588055,12.88,111.92,111.82,0.024]
[1644344588253,12.88,111.92,111.82,34.83313862]
[1644344588480,18.88,111.92,111.85,13.4118]
[1644344589473,18.88,111.92,111.86,39.1410437]
[1644344589674,13.4111,111.9,111.86,52.5519437]
[1644344589875,18.88,111.92,111.86,52.8019437]
[1644344590472,18.88,111.92,111.86,52.5519437]
[1644344591776,32.2888,111.92,111.86,52.5519437]
[1644344592675,32.2888,111.92,111.86,52.8019437]
[1644344592875,29.46532124,111.91,111.86,13.4109]
[1644344593075,29.46532124,111.91,111.83,0.024]
[1644344593076,13.413,111.89,111.83,0.024]
[1644344593280,13.413,111.89,111.81,94.46217104]
[1644344593281,26.293,111.89,111.81,94.46217104]
[1644344593478,26.293,111.89,111.81,93.2027]
[1644344593676,32.293,111.89,111.81,93.2027]
[1644344593876,71.07996193,111.89,111.82,34.97278323]
[1644344594275,71.07996193,111.89,111.83,13.4135]
[1644344594476,71.07996193,111.89,111.82,34.99678323]
[1644344594676,81.47796193,111.89,111.82,34.99678323]
[1644344595476,81.47796193,111.89,111.82,34.97278323]
[1644344597878,81.47796193,111.89,111.81,13.4402]
[1644344598078,81.47796193,111.89,111.81,0.024]
[1644344598279,81.47796193,111.89,111.79,0.024]
[1644344598483,81.47796193,111.89,111.81,0.024]
[1644344598679,81.47796193,111.89,111.79,0.024]
[1644344599078,81.47796193,111.89,111.79,43.0747121]
[1644344599280,81.47796193,111.89,111.79,43.3247121]
[1644344599878,81.47796193,111.89,111.79,56.7431121]
[1644344603882,81.47796193,111.89,111.79,56.4931121]
[1644344604285,81.47796193,111.89,111.79,43.0747121]
[1644344606685,104.62346193,111.89,111.79,43.0747121]
[1644344606886,163.10775549,111.88,111.75,112.5]
[1644344607086,161.0,111.84,111.71,23.5197]
[1644344607287,13.4257,111.81,111.71,23.5197]
[1644344607487,12.88,111.8,111.71,23.5197]
[1644344607687,18.88,111.8,111.71,23.5197]
[1644344607887,18.88,111.8,111.72,42.90812652]
[1644344608088,18.88,111.8,111.72,48.90812652]
[1644344608689,12.88,111.8,111.72,51.26588201]
[1644344608889,45.9794,111.82,111.72,49.15812652]
[1644344608890,12.88,111.82,111.72,49.15812652]
[1644344609087,6.0,111.82,111.72,62.58342652]
[1644344609486,13.4212,111.82,111.72,62.58342652]
[1644344609688,19.4212,111.82,111.72,62.58342652]
[1644344610090,6.0,111.82,111.73,112.5]
[1644344610289,12.88,111.86,111.78,13.4181]
[1644344610591,12.88,111.88,111.79,0.30395211]
[1644344610889,57.6021,111.89,111.79,0.30395211]
[1644344611088,101.96908207,111.89,111.79,47.63099951]
[1644344611288,101.96908207,111.89,111.79,47.88099951]
[1644344611690,13.4152,111.87,111.79,47.88099951]
[1644344611888,13.4152,111.87,111.82,45.66956521]
[1644344612088,19.4152,111.87,111.82,45.66956521]
[1644344613194,51.4832759,111.87,111.81,13.4149]
[1644344613492,12.88,111.86,111.73,119.75947104]
[1644344613794,13.4209,111.83,111.74,24.7155]
[1644344613994,22.5509,111.83,111.74,24.7155]
[1644344614194,28.5509,111.83,111.77,40.32325526]
[1644344615395,32.0680759,111.82,111.77,40.32325526]
[1644344615597,51.4901759,111.82,111.77,40.32325526]
[1644344616097,12.88,111.81,111.73,6.0]
[1644344616296,12.88,111.81,111.74,13.4235]
[1644344616497,18.88,111.81,111.74,13.4235]
[1644344616695,13.4238,111.8,111.71,1.25947104]
[1644344616895,13.4238,111.8,111.69,31.29464904]
[1644344616896,34.5228,111.8,111.69,9.50542008]
[1644344617096,34.79168263,111.79,111.7,43.1419548]
[1644344617495,40.79168263,111.79,111.7,43.1419548]
[1644344617895,40.79168263,111.79,111.7,43.3919548]
[1644344618696,13.4267,111.78,111.71,13.4271]
[1644344619101,19.4267,111.78,111.71,13.6771]
[1644344619897,19.4267,111.78,111.72,47.82371497]
[1644344620100,19.4267,111.78,111.73,13.4251]
[1644344620299,19.4267,111.78,111.74,37.3392853]
[1644344620597,6.0,111.78,111.74,37.3392853]
[1644344621098,19.4249,111.79,111.74,37.3392853]
[1644344625100,19.4249,111.79,111.73,0.024]
[1644344625301,31.2179,111.79,111.72,0.024]
[1644344625501,12.88,111.78,111.72,0.024]
[1644344625701,13.4274,111.77,111.72,0.024]
[1644344625904,13.4274,111.77,111.71,13.6771]
[1644344626104,13.4274,111.77,111.72,34.85745953]
[1644344626303,13.4274,111.77,111.72,48.28365953]
[1644344628504,26.3059,111.78,111.72,48.28365953]
[1644344628706,32.3059,111.78,111.72,48.53365953]
[1644344629307,12.88,111.8,111.72,48.53365953]
[1644344629509,12.88,111.8,111.73,0.024]
[1644344629729,32.3043,111.8,111.74,13.4237]
[1644344629929,32.3043,111.8,111.75,42.43738644]
[1644344631430,18.88,111.8,111.75,55.85998644]
[1644344631629,12.88,111.8,111.75,56.10998644]
[1644344631831,6.0,111.8,111.75,56.10998644]
[1644344632032,13.4222,111.81,111.75,56.10998644]
[1644344632231,19.4222,111.81,111.75,56.10998644]
[1644344632632,13.4211,111.82,111.75,56.10998644]
[1644344632830,23.7461,111.83,111.75,56.13398644]
[1644344633129,6.0,111.83,111.78,13.4179]
[1644344633329,6.0,111.83,111.78,13.6679]
[1644344633530,6.0,111.86,111.79,43.69460407]
[1644344633731,13.4164,111.86,111.79,43.96860407]
[1644344634131,19.4164,111.86,111.79,43.96860407]
[1644344634334,50.41566973,111.86,111.79,43.96860407]
[1644344634731,50.41566973,111.86,111.79,43.71860407]
[1644344635130,12.88,111.85,111.79,43.71860407]
[1644344635331,13.42,111.84,111.79,43.69460407]
[1644344635631,55.15534392,111.84,111.79,43.69460407]
[1644344635833,19.42,111.84,111.79,43.69460407]
[1644344638946,6.0,111.84,111.79,57.36250407]
[1644344639138,6.0,111.85,111.79,57.36250407]
[1644344639338,12.88,111.87,111.79,57.36250407]
[1644344639539,12.88,111.87,111.8,0.024]
[1644344639741,28.4679491,111.86,111.8,0.024]
[1644344640141,47.8843491,111.86,111.8,13.4403]
[1644344640342,47.8843491,111.86,111.81,47.73547306]
[1644344640545,19.4164,111.86,111.81,47.73547306]
[1644344641144,32.2964,111.86,111.81,47.73547306]
[1644344641543,25.73746388,111.85,111.81,47.73547306]
[1644344641744,13.4172,111.85,111.77,0.024]
[1644344641943,19.4172,111.85,111.77,0.024]
[1644344642743,65.49982074,111.85,111.79,13.4181]
[1644344642943,65.49982074,111.85,111.79,49.66501374]
[1644344643144,65.49982074,111.85,111.79,49.91501374]
[1644344643345,65.49982074,111.85,111.79,49.66501374]
[1644344643544,19.4172,111.85,111.79,49.66501374]
[1644344643747,19.4172,111.85,111.79,49.91501374]
[1644344644146,19.4172,111.85,111.79,49.66501374]
[1644344644547,58.77610297,111.85,111.79,49.66501374]
[1644344645649,58.77610297,111.85,111.79,49.91501374]
[1644344645846,58.77610297,111.85,111.79,49.66501374]
[1644344646048,58.77610297,111.85,111.79,49.91501374]
[1644344646246,19.4172,111.85,111.79,49.91501374]
[1644344647653,29.35396164,111.84,111.79,49.66501374]
[1644344648052,42.77236164,111.84,111.79,49.66501374]
[1644344648254,19.4184,111.84,111.79,49.66501374]
[1644344649953,6.0,111.84,111.79,49.91501374]
[1644344650158,32.2973,111.85,111.79,49.91501374]
[1644344650358,26.2973,111.85,111.79,49.91501374]
[1644344651255,32.2973,111.85,111.79,49.91501374]
[1644344651859,19.4173,111.85,111.79,49.91501374]
[1644344652558,6.0,111.85,111.79,49.91501374]
[1644344653062,19.4162,111.86,111.79,49.91501374]
[1644344653260,19.4162,111.86,111.79,49.93901374]
[1644344653960,26.2949,111.87,111.79,49.93901374]
[1644344654160,19.4149,111.87,111.79,49.93901374]
[1644344654362,12.88,111.88,111.79,49.93901374]
[1644344654662,18.88,111.88,111.79,49.93901374]
[1644344655260,18.88,111.88,111.79,74.66581374]
[1644344655564,12.88,111.88,111.79,80.66581374]
[1644344655761,26.2937,111.88,111.79,80.66581374]
[1644344656480,60.95495692,111.88,111.79,80.66581374]
[1644344656680,66.95495692,111.88,111.79,80.66581374]
[1644344657681,66.95495692,111.88,111.79,13.4421]
[1644344657881,91.82261241,111.88,111.79,0.024]
[1644344658084,93.09439585,111.88,111.78,13.4197]
[1644344658281,90.98664036,111.88,111.79,0.024]
[1644344658683,90.98664036,111.88,111.78,47.99305]
[1644344658881,90.98664036,111.88,111.78,48.01705]
[1644344659082,90.98664036,111.88,111.79,0.024]
[1644344659783,90.98664036,111.88,111.79,13.4423]
[1644344659982,90.98664036,111.88,111.8,36.25917187]
[1644344661885,39.71132838,111.86,111.8,36.25917187]
[1644344662086,26.2982,111.85,111.8,36.25917187]
[1644344662292,26.2982,111.85,111.79,13.4183]
[1644344662491,32.2982,111.85,111.78,0.024]
[1644344662693,32.2982,111.85,111.77,23.004]
[1644344663290,34.66125692,111.84,111.77,23.004]
[1644344663488,13.4215,111.82,111.77,36.4246]
[1644344663689,67.35796048,111.82,111.77,13.4206]
[1644344665492,28.3495,111.82,111.77,13.4206]
[1644344665798,19.4215,111.82,111.77,13.4206]
[1644344666596,19.4215,111.82,111.78,37.82411669]
[1644344674304,19.4215,111.82,111.77,13.4206]
[1644344674499,30.2095,111.82,111.76,13.4221]
[1644344674700,30.2095,111.82,111.76,13.6721]
[1644344675300,30.2095,111.82,111.76,54.77293673]
[1644344676502,19.4215,111.82,111.76,54.77293673]
[1644344678100,38.54526833,111.81,111.76,13.4221]
[1644344678303,51.96736833,111.81,111.75,13.4472]
[1644344678502,70.84736833,111.81,111.75,0.024]
[1644344678701,70.84736833,111.81,111.73,0.024]
[1644344678903,70.84736833,111.81,111.74,21.30095527]
[1644344679104,70.84736833,111.81,111.74,21.32495527]
[1644344679301,70.84736833,111.81,111.75,45.27448279]
[1644344680803,70.84736833,111.81,111.74,0.024]
[1644344681004,70.84736833,111.81,111.69,1.28347104]
[1644344681005,13.4295,111.77,111.69,1.28347104]
[1644344681204,12.88,111.76,111.71,0.024]
[1644344681406,12.88,111.76,111.69,0.024]
[1644344681607,18.88,111.76,111.69,0.024]
[1644344681806,35.82731697,111.75,111.69,46.11674315]
[1644344682304,41.82731697,111.75,111.69,46.11674315]
[1644344682706,13.4315,111.74,111.69,46.11674315]
[1644344682908,23.1635,111.74,111.69,46.11674315]
[1644344683107,29.1635,111.74,111.69,46.11674315]
[1644344684110,29.1635,111.74,111.69,59.54734315]
[1644344684508,19.4315,111.74,111.69,59.54734315]
[1644344684909,13.4315,111.74,111.69,59.54734315]
[1644344685109,12.88,111.76,111.71,82.4281]
[1644344685310,23.797,111.84,111.71,82.4281]
[1644344685311,1.27178344,111.81,111.73,0.30334437]
[1644344685509,13.4218,111.82,111.73,0.30334437]
[1644344685712,25.06878344,111.84,111.73,73.27988595]
[1644344685911,24.86858344,111.85,111.74,46.87035549]
[1644344686209,1.27178344,111.86,111.79,13.4154]
[1644344686413,1.27178344,111.88,111.79,22.31208224]
[1644344686614,1.27178344,111.89,111.8,2.10775549]
[1644344686814,35.276466,111.88,111.81,35.12617532]
[1644344687311,41.276466,111.88,111.81,50.65053081]
[1644344687511,41.276466,111.88,111.81,48.54277532]
[1644344687715,54.692666,111.88,111.81,13.4166]
[1644344688113,55.96444944,111.88,111.81,13.4166]
[1644344688711,55.96444944,111.88,111.82,38.23721719]
[1644344689916,55.96444944,111.88,111.81,13.4166]
[1644344690117,55.96444944,111.88,111.8,13.4181]
[1644344691026,1.27178344,111.87,111.78,0.024]
[1644344691218,7.27178344,111.87,111.78,13.4203]
[1644344691417,13.4213,111.85,111.78,13.4203]
[1644344691617,19.4213,111.85,111.78,13.4203]
[1644344692020,38.68549335,111.84,111.78,60.96910244]
[1644344692217,44.68549335,111.84,111.78,60.96910244]
[1644344692616,58.10619335,111.84,111.77,13.4454]
[1644344693517,58.10619335,111.84,111.77,53.35273973]
[1644344694121,58.10619335,111.84,111.77,55.46049522]
[1644344695124,58.10619335,111.84,111.77,13.4454]
[1644344695321,67.90119335,111.84,111.77,13.4454]
[1644344695520,67.90119335,111.84,111.77,0.024]
[1644344696921,69.17297679,111.84,111.77,0.024]
[1644344697326,84.16073228,111.84,111.74,0.024]
[1644344697529,1.27178344,111.83,111.75,0.024]
[1644344697726,13.427,111.81,111.73,0.024]
[1644344697926,13.427,111.81,111.72,0.024]
[1644344697927,12.88,111.8,111.72,0.024]
[1644344698127,18.88,111.8,111.72,0.024]
[1644344698730,35.68709195,111.79,111.72,0.024]
[1644344698930,48.56709195,111.79,111.72,0.024]
[1644344699230,13.4309,111.78,111.72,0.024]
[1644344699430,23.1529,111.78,111.7,52.10115424]
[1644344699632,29.1529,111.78,111.7,38.67145424]
[1644344699830,29.1529,111.78,111.7,38.92145424]
[1644344700231,29.1529,111.78,111.71,13.4293]
[1644344700434,29.1529,111.78,111.71,13.4533]
[1644344700732,19.4309,111.78,111.71,15.81105549]
[1644344700934,19.4309,111.78,111.71,15.56105549]
[1644344702236,19.4309,111.78,111.72,2.5904009]
[1644344703933,16.6089295,111.78,111.72,2.5904009]
[1644344706551,29.4889295,111.78,111.72,2.5904009]
[1644344709154,29.4889295,111.78,111.69,13.4311]
[1644344709356,2.10775549,111.77,111.68,0.12222413]
[1644344709555,13.4361,111.75,111.68,0.12222413]
[1644344709759,12.88,111.74,111.68,0.12222413]
[1644344709962,22.471,111.74,111.68,0.12222413]
[1644344710157,35.7273643,111.73,111.68,0.12222413]
[1644344710357,12.88,111.72,111.68,0.12222413]
[1644344710557,35.68709195,111.71,111.68,0.12222413]
[1644344710757,43.59609195,111.71,111.68,0.12222413]
[1644344710959,62.47609195,111.71,111.68,0.12222413]
[1644344711759,75.91399195,111.71,111.68,0.12222413]
[1644344712962,40.2269,111.71,111.68,0.12222413]
[1644344713161,32.3179,111.71,111.68,0.12222413]
[1644344713361,32.3179,111.71,111.69,6.06439994]
[1644344713863,6.0,111.71,111.69,6.06439994]
[1644344714163,49.33585619,111.74,111.69,6.06439994]
[1644344714766,6.0,111.74,111.69,6.31439994]
[1644344714965,6.0,111.74,111.69,6.06439994]
[1644344715167,13.4298,111.76,111.69,19.49519994]
[1644344715362,13.4298,111.76,111.69,19.74519994]
[1644344715562,19.4298,111.76,111.69,19.49519994]
[1644344715763,40.47041657,111.75,111.69,19.74519994]
[1644344716163,46.47041657,111.75,111.69,19.74519994]
[1644344716564,46.47041657,111.75,111.7,36.02481184]
[1644344717568,59.90101657,111.75,111.7,36.02481184]
[1644344718274,59.90101657,111.75,111.69,13.6808]
[1644344719372,59.90101657,111.75,111.69,51.97913147]
[1644344720170,19.4306,111.75,111.69,51.97913147]
[1644344720373,6.0,111.75,111.69,51.97913147]
[1644344720775,19.4297,111.76,111.69,51.97913147]
[1644344721171,45.02594938,111.75,111.69,51.97913147]
[1644344721371,58.45644938,111.75,111.69,51.97913147]
[1644344721571,19.4305,111.75,111.69,51.97913147]
[1644344721772,6.0,111.75,111.69,51.97913147]
[1644344722175,18.88,111.77,111.69,51.97913147]
[1644344722572,34.8386065,111.76,111.69,51.97913147]
[1644344722874,48.2683065,111.76,111.69,51.97913147]
[1644344723072,54.2683065,111.76,111.69,51.97913147]
[1644344724774,54.2683065,111.76,111.69,52.00313147]
[1644344726575,54.2683065,111.76,111.69,51.75313147]
[1644344727475,67.1483065,111.76,111.69,51.75313147]
[1644344728476,67.1483065,111.76,111.69,38.32233147]
[1644344728676,32.3097,111.76,111.69,38.32233147]
[1644344729376,32.3097,111.76,111.69,0.024]
[1644344729576,33.58148344,111.76,111.69,0.024]
[1644344730482,38.42008591,111.75,111.69,0.024]
[1644344730677,13.4333,111.74,111.69,0.024]
[1644344730877,32.99437034,111.73,111.68,0.12222413]
[1644344731077,38.99437034,111.73,111.68,0.12222413]
[1644344731378,6.0,111.73,111.68,0.12222413]
[1644344731776,18.88,111.75,111.68,0.12222413]
[1644344731977,13.4333,111.73,111.68,0.14622413]
[1644344732177,13.4333,111.73,111.68,0.12222413]
[1644344732178,58.13268689,111.73,111.68,0.12222413]
[1644344735280,58.13268689,111.73,111.68,36.93573524]
[1644344736981,58.13268689,111.73,111.68,0.12222413]
[1644344737783,19.4333,111.73,111.68,0.12222413]
[1644344738684,19.4333,111.73,111.68,34.71159216]
[1644344739284,19.4333,111.73,111.68,48.14399216]
[1644344739685,19.4333,111.73,111.68,34.71159216]
[1644344740289,19.4333,111.73,111.68,48.14409216]
[1644344740889,6.0,111.73,111.68,48.14409216]
[1644344741092,1.27178344,111.76,111.68,50.25184765]
[1644344741290,1.27178344,111.77,111.68,64.88046222]
[1644344741494,1.27178344,111.78,111.71,13.4251]
[1644344741691,1.27178344,111.78,111.72,0.024]
[1644344741891,1.27178344,111.79,111.72,45.09562273]
[1644344742091,24.26632922,111.79,111.72,45.11962273]
[1644344742292,24.26632922,111.79,111.73,2.10775549]
[1644344742493,30.26632922,111.79,111.74,41.23938356]
[1644344742898,7.27178344,111.79,111.74,41.23938356]
[1644344743093,7.27178344,111.79,111.73,15.53355549]
[1644344743297,7.27178344,111.79,111.72,0.024]
[1644344743298,1.27178344,111.78,111.72,0.024]
[1644344743493,1.27178344,111.78,111.7,2.13175549]
[1644344743693,7.27178344,111.78,111.7,2.38175549]
[1644344743893,7.27178344,111.78,111.7,2.13175549]
[1644344744094,46.8820246,111.77,111.71,40.5971366]
[1644344744293,60.3114246,111.77,111.71,13.4528]
[1644344744493,66.3114246,111.77,111.71,0.024]
[1644344744694,66.3114246,111.77,111.69,47.3499]
[1644344744895,67.58320804,111.77,111.69,47.3499]
[1644344745094,67.58320804,111.77,111.69,0.024]
[1644344745296,77.44120804,111.77,111.69,36.74531362]
[1644344746025,90.32120804,111.77,111.69,36.74531362]
[1644344746425,13.4315,111.74,111.69,36.74531362]
[1644344746623,19.4315,111.74,111.69,36.74531362]
[1644344748926,19.4315,111.74,111.69,50.17681362]
[1644344749326,6.0,111.74,111.69,50.17681362]
[1644344749533,1.27178344,111.77,111.69,66.88918368]
[1644344749726,1.27178344,111.78,111.69,66.88918368]
[1644344749926,1.27178344,111.79,111.7,0.024]
[1644344750127,7.27178344,111.79,111.72,13.4273]
[1644344750426,45.78939763,111.77,111.72,13.4273]
[1644344750629,51.78939763,111.77,111.72,13.4513]
[1644344751727,65.21739763,111.77,111.72,13.4513]
[1644344757236,65.21739763,111.77,111.72,0.024]
[1644344757436,65.21739763,111.77,111.71,13.4289]
[1644344757836,65.21739763,111.77,111.71,13.6789]
[1644344758235,65.21739763,111.77,111.71,57.67844723]
[1644344759939,19.428,111.77,111.71,57.67844723]
[1644344760841,41.2002019,111.76,111.71,57.67844723]
[1644344761240,47.2002019,111.76,111.71,57.67844723]
[1644344761441,6.0,111.76,111.71,57.67844723]
[1644344761746,6.0,111.76,111.71,13.4289]
[1644344762041,25.607,111.76,111.7,37.3243]
[1644344762242,25.607,111.76,111.69,0.024]
[1644344762441,31.607,111.76,111.69,0.024]
[1644344762742,50.33463782,111.75,111.69,0.024]
[1644344762942,33.95981843,111.73,111.69,0.024]
[1644344763144,47.89181843,111.73,111.68,0.12222413]
[1644344764742,13.4355,111.72,111.68,0.12222413]
[1644344765144,19.4355,111.72,111.68,0.12222413]
[1644344765945,37.11161796,111.71,111.68,0.12222413]
[1644344766148,43.11161796,111.71,111.68,0.12222413]
[1644344768345,43.11161796,111.71,111.69,8.81138883]
[1644344768745,6.0,111.71,111.69,8.81138883]
[1644344769147,50.7887,111.72,111.69,8.81138883]
[1644344769347,63.6687,111.72,111.69,8.81138883]
[1644344769550,44.7968,111.71,111.69,8.81138883]
[1644344772051,49.43815301,111.65,111.62,0.17947181]
[1644344772277,55.43815301,111.65,111.62,0.17947181]
[1644344772478,68.31815301,111.65,111.62,0.17947181]
[1644344772874,32.3259,111.65,111.62,0.17947181]
[1644344773075,32.3259,111.65,111.63,6.06439994]
[1644344773275,19.4459,111.65,111.62,0.17947181]
[1644344773478,19.4459,111.65,111.59,0.024]
[1644344773674,19.4459,111.65,111.58,44.87365477]
[1644344773875,35.3241399,111.64,111.58,44.87365477]
[1644344774276,6.0,111.65,111.6,13.4422]
[1644344774476,6.0,111.66,111.6,13.4422]
[1644344774679,12.88,111.68,111.6,15.79995549]
[1644344774680,18.88,111.68,111.6,15.79995549]
[1644344774876,18.88,111.68,111.6,15.82395549]
[1644344775177,18.88,111.68,111.6,15.57395549]
[1644344775377,39.19178585,111.67,111.6,59.04289041]
[1644344775582,58.63168585,111.67,111.6,13.4422]
[1644344776378,58.63168585,111.67,111.6,19.4422]
[1644344776576,58.63168585,111.67,111.6,63.83541188]
[1644344778079,57.63168585,111.67,111.6,63.83541188]
[1644344778479,12.88,111.66,111.59,0.024]
[1644344778679,13.4456,111.64,111.58,0.024]
[1644344778880,24.1872,111.63,111.56,0.024]
[1644344779079,24.1872,111.63,111.53,0.17947181]
[1644344779080,30.1872,111.63,111.54,0.024]
[1644344779479,18.71199849,111.62,111.54,0.024]
[1644344779682,24.71199849,111.62,111.54,0.024]
[1644344780881,13.4471,111.61,111.56,50.1348366]
[1644344781182,19.4471,111.61,111.56,50.1348366]
[1644344782881,13.4455,111.62,111.56,50.1348366]
[1644344783081,13.4455,111.62,111.56,50.4088366]
[1644344783284,13.4455,111.62,111.56,50.3848366]
[1644344784787,6.0,111.62,111.56,50.3848366]